[Event "*** Titled Tuesday Blitz"]
[Site "Chess.com"]
[Date "2021.02.02"]
[Round "5"]
[White "NiranjanNavalgund"]
[Black "benko_008"]
[Result "1-0"]
[WhiteElo "2525"]
[BlackElo "2377"]
[TimeControl "180+1"]
[EndTime "11:01:05 PST"]
[Termination "NiranjanNavalgund won on time"]

1. d4 {[%clk 0:03:00.7]} 1... d5 {[%clk 0:02:59.9]} 2. Nf3 {[%clk 0:02:59.3]}
2... Nf6 {[%clk 0:02:58.7]} 3. c4 {[%clk 0:03:00]} 3... dxc4 {[%clk 0:02:58.1]}
4. Na3 {[%clk 0:02:58.9]} 4... Bf5 {[%clk 0:02:49]} 5. Nxc4 {[%clk 0:02:58.5]}
5... c6 {[%clk 0:02:46.8]} 6. Qb3 {[%clk 0:02:55.9]} 6... Qc8 {[%clk 0:02:32.7]}
7. Bg5 {[%clk 0:02:40.2]} 7... Nbd7 {[%clk 0:02:24.3]} 8. Rc1 {[%clk 0:02:33.8]}
8... e6 {[%clk 0:02:22.4]} 9. Bf4 {[%clk 0:02:28.5]} 9... Ne4 {[%clk 0:02:03.1]}
10. Nfe5 {[%clk 0:02:14.5]} 10... a5 {[%clk 0:01:44.3]} 11. Nxd7 {[%clk
0:02:08.6]} 11... Bb4+ {[%clk 0:01:43]} 12. Qxb4 {[%clk 0:01:44.1]} 12... axb4
{[%clk 0:01:43.9]} 13. Ndb6 {[%clk 0:01:42.3]} 13... Qd8 {[%clk 0:01:39.9]} 14.
Nxa8 {[%clk 0:01:33.8]} 14... Qxa8 {[%clk 0:01:39.4]} 15. f3 {[%clk 0:01:32.9]}
15... Nf6 {[%clk 0:01:20.3]} 16. e4 {[%clk 0:01:30.3]} 16... Bg6 {[%clk
0:01:20]} 17. Bd6 {[%clk 0:01:24.2]} 17... Qxa2 {[%clk 0:01:18.9]} 18. Bxb4
{[%clk 0:01:22.8]} 18... Qb3 {[%clk 0:01:12]} 19. Ba3 {[%clk 0:01:14.9]} 19...
b5 {[%clk 0:01:08]} 20. Rc3 {[%clk 0:01:14.5]} 20... Qa2 {[%clk 0:01:07.4]} 21.
Ne5 {[%clk 0:01:08.9]} 21... b4 {[%clk 0:00:48.2]} 22. Bxb4 {[%clk 0:00:48.9]}
22... Qxb2 {[%clk 0:00:47.7]} 23. Nxc6 {[%clk 0:00:42.6]} 23... Bxe4 {[%clk
0:00:44.3]} 24. Bb5 {[%clk 0:00:31.6]} 24... Bxc6 {[%clk 0:00:35.5]} 25. Bxc6+
{[%clk 0:00:27.4]} 25... Kd8 {[%clk 0:00:35]} 26. Ba5+ {[%clk 0:00:27.1]} 26...
Ke7 {[%clk 0:00:33.4]} 27. O-O {[%clk 0:00:27.3]} 27... Rc8 {[%clk 0:00:30.3]}
28. Rfc1 {[%clk 0:00:26.2]} 28... Nd5 {[%clk 0:00:28.8]} 29. Bxd5 {[%clk
0:00:23.5]} 29... Rxc3 {[%clk 0:00:28.7]} 30. Rxc3 {[%clk 0:00:24.3]} 30... exd5
{[%clk 0:00:28]} 31. Re3+ {[%clk 0:00:19.6]} 31... Kd7 {[%clk 0:00:25.6]} 32.
Bc3 {[%clk 0:00:15.2]} 32... Qc2 {[%clk 0:00:25.9]} 33. Kf1 {[%clk 0:00:14.7]}
33... f6 {[%clk 0:00:26.4]} 34. h4 {[%clk 0:00:14.6]} 34... h5 {[%clk
0:00:26.1]} 35. Be1 {[%clk 0:00:14.4]} 35... Qc4+ {[%clk 0:00:25.2]} 36. Kf2
{[%clk 0:00:13.4]} 36... Qxd4 {[%clk 0:00:25.7]} 37. Ke2 {[%clk 0:00:13.7]}
37... Qb2+ {[%clk 0:00:25.5]} 38. Bd2 {[%clk 0:00:14.3]} 38... Qb5+ {[%clk
0:00:25.5]} 39. Rd3 {[%clk 0:00:15.2]} 39... Ke6 {[%clk 0:00:25]} 40. Ke3 {[%clk
0:00:15.3]} 40... Qc5+ {[%clk 0:00:25.2]} 41. Ke2 {[%clk 0:00:15]} 41... Qc4
{[%clk 0:00:25.5]} 42. Ke3 {[%clk 0:00:15.4]} 42... Qc2 {[%clk 0:00:22.5]} 43.
g4 {[%clk 0:00:14.6]} 43... hxg4 {[%clk 0:00:20.6]} 44. fxg4 {[%clk 0:00:15.2]}
44... Qd1 {[%clk 0:00:20.8]} 45. g5 {[%clk 0:00:13.5]} 45... Qg1+ {[%clk
0:00:18.2]} 46. Ke2 {[%clk 0:00:13.5]} 46... Qg2+ {[%clk 0:00:17.8]} 47. Kd1
{[%clk 0:00:13.5]} 47... Qg4+ {[%clk 0:00:16.5]} 48. Kc2 {[%clk 0:00:13.1]}
48... Qc4+ {[%clk 0:00:15.2]} 49. Rc3 {[%clk 0:00:13.1]} 49... Qa4+ {[%clk
0:00:15.8]} 50. Kc1 {[%clk 0:00:13.1]} 50... Qxh4 {[%clk 0:00:16.7]} 51. gxf6
{[%clk 0:00:13]} 51... gxf6 {[%clk 0:00:16.1]} 52. Rd3 {[%clk 0:00:13.4]} 52...
Qc4+ {[%clk 0:00:15.1]} 53. Rc3 {[%clk 0:00:13.6]} 53... Qf1+ {[%clk 0:00:15.3]}
54. Kc2 {[%clk 0:00:13.7]} 54... d4 {[%clk 0:00:15.7]} 55. Rb3 {[%clk
0:00:13.7]} 55... Qc4+ {[%clk 0:00:14.6]} 56. Kb2 {[%clk 0:00:14.2]} 56... Kd5
{[%clk 0:00:14.2]} 57. Rb4 {[%clk 0:00:13.9]} 57... Qd3 {[%clk 0:00:13.7]} 58.
Kc1 {[%clk 0:00:13.4]} 58... f5 {[%clk 0:00:13.6]} 59. Rb8 {[%clk 0:00:12.9]}
59... Qc4+ {[%clk 0:00:13.1]} 60. Kd1 {[%clk 0:00:12.8]} 60... Qa4+ {[%clk
0:00:13.1]} 61. Ke1 {[%clk 0:00:12.3]} 61... Ke4 {[%clk 0:00:13.5]} 62. Rb4
{[%clk 0:00:10.8]} 62... Qa1+ {[%clk 0:00:13]} 63. Kf2 {[%clk 0:00:11.3]} 63...
Qa2 {[%clk 0:00:11.8]} 64. Ke1 {[%clk 0:00:10.7]} 64... Qa1+ {[%clk 0:00:10]}
65. Kf2 {[%clk 0:00:10.4]} 65... Qd1 {[%clk 0:00:09.8]} 66. Be1 {[%clk
0:00:10.1]} 66... Qf3+ {[%clk 0:00:09]} 67. Kg1 {[%clk 0:00:10.1]} 67... Qe2
{[%clk 0:00:07.7]} 68. Bf2 {[%clk 0:00:09.4]} 68... Qg4+ {[%clk 0:00:06.8]} 69.
Kf1 {[%clk 0:00:09.4]} 69... Kf3 {[%clk 0:00:04.9]} 70. Rb3+ {[%clk 0:00:06.7]}
70... Ke4 {[%clk 0:00:04.9]} 71. Rb4 {[%clk 0:00:07.6]} 71... Qd1+ {[%clk
0:00:04.9]} 72. Kg2 {[%clk 0:00:06.9]} 72... Qf3+ {[%clk 0:00:04.8]} 73. Kf1
{[%clk 0:00:07]} 73... Qd3+ {[%clk 0:00:03.8]} 74. Kg2 {[%clk 0:00:06.6]} 1-0

[Event "*** Titled Tuesday Blitz"]
[Site "Chess.com"]
[Date "2021.02.02"]
[Round "5"]
[White "Carnivoras"]
[Black "Aslanov_Umid"]
[Result "1/2-1/2"]
[WhiteElo "2597"]
[BlackElo "2332"]
[TimeControl "180+1"]
[EndTime "11:01:11 PST"]
[Termination "Game drawn - insufficient material"]

1. d4 {[%clk 0:02:46.7]} 1... d5 {[%clk 0:02:59.6]} 2. c4 {[%clk 0:02:46.7]}
2... e6 {[%clk 0:02:59.8]} 3. Nc3 {[%clk 0:02:47.2]} 3... c6 {[%clk 0:02:59.5]}
4. Nf3 {[%clk 0:02:46.1]} 4... Nf6 {[%clk 0:02:56.8]} 5. Bg5 {[%clk 0:02:45.8]}
5... h6 {[%clk 0:02:53.7]} 6. Bxf6 {[%clk 0:02:43]} 6... Qxf6 {[%clk 0:02:54.6]}
7. e3 {[%clk 0:02:43.4]} 7... Bd6 {[%clk 0:02:53.3]} 8. Bd3 {[%clk 0:02:43.2]}
8... O-O {[%clk 0:02:52.6]} 9. O-O {[%clk 0:02:43.4]} 9... Nd7 {[%clk 0:02:48]}
10. e4 {[%clk 0:02:42.6]} 10... dxe4 {[%clk 0:02:46.3]} 11. Nxe4 {[%clk
0:02:42.3]} 11... Qe7 {[%clk 0:02:46.8]} 12. Qe2 {[%clk 0:02:40.6]} 12... Bc7
{[%clk 0:02:38.1]} 13. Rfe1 {[%clk 0:02:23]} 13... Nf6 {[%clk 0:02:35.8]} 14.
Nxf6+ {[%clk 0:02:10.5]} 14... Qxf6 {[%clk 0:02:36.7]} 15. Qe4 {[%clk 0:02:11]}
15... g6 {[%clk 0:02:34.9]} 16. Ne5 {[%clk 0:01:57.5]} 16... Rd8 {[%clk
0:02:09.8]} 17. Rad1 {[%clk 0:01:46.1]} 17... Bb6 {[%clk 0:01:24]} 18. Bb1
{[%clk 0:01:27.6]} 18... c5 {[%clk 0:01:04.5]} 19. dxc5 {[%clk 0:01:10.6]} 19...
Rxd1 {[%clk 0:01:05.4]} 20. Rxd1 {[%clk 0:01:09.9]} 20... Bxc5 {[%clk
0:01:05.9]} 21. Nf3 {[%clk 0:01:05.4]} 21... Qxb2 {[%clk 0:00:38.7]} 22. Rd8+
{[%clk 0:00:57.6]} 22... Kg7 {[%clk 0:00:34.6]} 23. Qe5+ {[%clk 0:00:53.9]}
23... Qxe5 {[%clk 0:00:32.7]} 24. Nxe5 {[%clk 0:00:54.8]} 24... Kf6 {[%clk
0:00:22.9]} 25. Nd3 {[%clk 0:00:36.8]} 25... b6 {[%clk 0:00:20.4]} 26. Nxc5
{[%clk 0:00:32.3]} 26... bxc5 {[%clk 0:00:21.3]} 27. Be4 {[%clk 0:00:31.8]}
27... Rb8 {[%clk 0:00:19]} 28. h3 {[%clk 0:00:31.8]} 28... Ke5 {[%clk
0:00:18.6]} 29. Bf3 {[%clk 0:00:31.2]} 29... f5 {[%clk 0:00:18.4]} 30. g3 {[%clk
0:00:28.7]} 30... Rb1+ {[%clk 0:00:16.9]} 31. Kg2 {[%clk 0:00:28.6]} 31... Ba6
{[%clk 0:00:17.4]} 32. Rd7 {[%clk 0:00:18.4]} 32... Bxc4 {[%clk 0:00:16.1]} 33.
Rxa7 {[%clk 0:00:19]} 33... Ra1 {[%clk 0:00:16.4]} 34. a4 {[%clk 0:00:19.1]}
34... Bb3 {[%clk 0:00:14.6]} 35. a5 {[%clk 0:00:19.1]} 35... c4 {[%clk
0:00:14.4]} 36. a6 {[%clk 0:00:18.8]} 36... c3 {[%clk 0:00:14.8]} 37. Rc7 {[%clk
0:00:19.1]} 37... c2 {[%clk 0:00:14.9]} 38. a7 {[%clk 0:00:19.6]} 38... Bd5
{[%clk 0:00:13.5]} 39. Bxd5 {[%clk 0:00:17.9]} 39... Kxd5 {[%clk 0:00:14.4]} 40.
Kf3 {[%clk 0:00:17]} 40... Rxa7 {[%clk 0:00:14.5]} 41. Rxc2 {[%clk 0:00:16.8]}
41... Ra3+ {[%clk 0:00:14.9]} 42. Ke2 {[%clk 0:00:17.1]} 42... Ke5 {[%clk
0:00:14.3]} 43. Rc7 {[%clk 0:00:16.9]} 43... Ra2+ {[%clk 0:00:14]} 44. Ke3
{[%clk 0:00:16.8]} 44... h5 {[%clk 0:00:14.3]} 45. Rf7 {[%clk 0:00:16.4]} 45...
Ra3+ {[%clk 0:00:14.6]} 46. Ke2 {[%clk 0:00:16.3]} 46... Ke4 {[%clk 0:00:13.3]}
47. Rf6 {[%clk 0:00:15.5]} 47... Ra2+ {[%clk 0:00:13.6]} 48. Ke1 {[%clk
0:00:15.6]} 48... e5 {[%clk 0:00:12.7]} 49. Rc6 {[%clk 0:00:12.4]} 49... Rb2
{[%clk 0:00:08.3]} 50. Kf1 {[%clk 0:00:09.3]} 50... g5 {[%clk 0:00:05.8]} 51.
Kg2 {[%clk 0:00:09]} 51... g4 {[%clk 0:00:05.7]} 52. hxg4 {[%clk 0:00:09]} 52...
hxg4 {[%clk 0:00:06.6]} 53. Rc4+ {[%clk 0:00:09.1]} 53... Kd5 {[%clk 0:00:07]}
54. Rc8 {[%clk 0:00:09.8]} 54... Ke6 {[%clk 0:00:06.5]} 55. Rc6+ {[%clk
0:00:09.8]} 55... Kd5 {[%clk 0:00:06.6]} 56. Rg6 {[%clk 0:00:09.7]} 56... Rb3
{[%clk 0:00:06.5]} 57. Rg8 {[%clk 0:00:09.8]} 57... Rb2 {[%clk 0:00:06.8]} 58.
Rg7 {[%clk 0:00:10.1]} 58... Ke6 {[%clk 0:00:07.2]} 59. Rg8 {[%clk 0:00:10.6]}
59... Kf7 {[%clk 0:00:07.1]} 60. Rc8 {[%clk 0:00:10.6]} 60... Kf6 {[%clk
0:00:07.2]} 61. Rg8 {[%clk 0:00:10.1]} 61... e4 {[%clk 0:00:06.3]} 62. Rc8
{[%clk 0:00:10]} 62... f4 {[%clk 0:00:06.2]} 63. gxf4 {[%clk 0:00:09.7]} 63...
e3 {[%clk 0:00:06.4]} 64. Rc3 {[%clk 0:00:08]} 64... e2 {[%clk 0:00:04.9]} 65.
Re3 {[%clk 0:00:07.4]} 65... Kf5 {[%clk 0:00:05.5]} 66. Re8 {[%clk 0:00:03.6]}
66... Rc2 {[%clk 0:00:05.3]} 67. Rf8+ {[%clk 0:00:03.3]} 67... Ke4 {[%clk
0:00:05.3]} 68. Re8+ {[%clk 0:00:03.5]} 68... Kd3 {[%clk 0:00:05.8]} 69. f5
{[%clk 0:00:03.4]} 69... Kd2 {[%clk 0:00:06.3]} 70. Rd8+ {[%clk 0:00:02.2]}
70... Kc1 {[%clk 0:00:05.5]} 71. Re8 {[%clk 0:00:03.1]} 71... Kd1 {[%clk
0:00:05.4]} 72. f6 {[%clk 0:00:03.6]} 72... Rc7 {[%clk 0:00:05.6]} 73. Kg3
{[%clk 0:00:02.4]} 73... e1=Q {[%clk 0:00:05.6]} 74. Rxe1+ {[%clk 0:00:02.8]}
74... Kxe1 {[%clk 0:00:06.5]} 75. Kxg4 {[%clk 0:00:03.7]} 75... Kxf2 {[%clk
0:00:06.8]} 76. Kf5 {[%clk 0:00:04.6]} 76... Kf3 {[%clk 0:00:06.3]} 77. Ke6
{[%clk 0:00:05]} 77... Rc6+ {[%clk 0:00:05.8]} 78. Ke7 {[%clk 0:00:05.1]} 78...
Rc7+ {[%clk 0:00:05.5]} 79. Kd6 {[%clk 0:00:05.5]} 79... Rf7 {[%clk 0:00:05]}
80. Ke6 {[%clk 0:00:05.8]} 80... Ra7 {[%clk 0:00:04.2]} 81. f7 {[%clk
0:00:06.7]} 81... Ra8 {[%clk 0:00:04.4]} 82. Ke7 {[%clk 0:00:07]} 82... Ra7+
{[%clk 0:00:05]} 83. Ke6 {[%clk 0:00:07.2]} 83... Rxf7 {[%clk 0:00:05.9]} 84.
Kxf7 {[%clk 0:00:07.5]} 1/2-1/2

[Event "*** Titled Tuesday Blitz"]
[Site "Chess.com"]
[Date "2021.02.02"]
[Round "6"]
[White "PerAsperaAdAstraCB"]
[Black "Bodnar_Mykola"]
[Result "0-1"]
[WhiteElo "2350"]
[BlackElo "2546"]
[TimeControl "180+1"]
[EndTime "11:04:16 PST"]
[Termination "Bodnar_Mykola won by resignation"]

1. d4 {[%clk 0:03:00.9]} 1... Nf6 {[%clk 0:02:58.8]} 2. Bf4 {[%clk 0:03:01.1]}
2... d5 {[%clk 0:02:55.9]} 3. e3 {[%clk 0:03:01.2]} 3... c5 {[%clk 0:02:55.7]}
4. Nc3 {[%clk 0:03:01.6]} 4... a6 {[%clk 0:02:54.6]} 5. dxc5 {[%clk 0:03:01.6]}
5... e6 {[%clk 0:02:53.4]} 6. b4 {[%clk 0:03:00.6]} 6... b6 {[%clk 0:02:50.5]}
7. Na4 {[%clk 0:02:43.1]} 7... bxc5 {[%clk 0:02:46.6]} 8. Nxc5 {[%clk
0:02:40.2]} 8... Bxc5 {[%clk 0:02:42.7]} 9. bxc5 {[%clk 0:02:41.1]} 9... Qa5+
{[%clk 0:02:42.9]} 10. Qd2 {[%clk 0:02:40.9]} 10... Qxc5 {[%clk 0:02:43.2]} 11.
Bd3 {[%clk 0:02:39.3]} 11... O-O {[%clk 0:02:41.9]} 12. Ne2 {[%clk 0:02:34.1]}
12... Nc6 {[%clk 0:02:42.4]} 13. c3 {[%clk 0:02:24.8]} 13... e5 {[%clk
0:02:41.4]} 14. Bg3 {[%clk 0:02:24.2]} 14... Ne4 {[%clk 0:02:38.2]} 15. Bxe4
{[%clk 0:02:23.6]} 15... dxe4 {[%clk 0:02:39.1]} 16. O-O {[%clk 0:02:22.9]}
16... Be6 {[%clk 0:02:37]} 17. Rfd1 {[%clk 0:02:16.4]} 17... Rfd8 {[%clk
0:02:36.1]} 18. Qc2 {[%clk 0:02:16.6]} 18... Bc4 {[%clk 0:02:31.2]} 19. Nc1
{[%clk 0:02:13.9]} 19... Rxd1+ {[%clk 0:02:26.5]} 20. Qxd1 {[%clk 0:02:14.8]}
20... Rd8 {[%clk 0:02:26.7]} 21. Qg4 {[%clk 0:02:13]} 21... f5 {[%clk
0:02:24.4]} 0-1

[Event "*** Titled Tuesday Blitz"]
[Site "Chess.com"]
[Date "2021.02.02"]
[Round "6"]
[White "c_r_e_e_p_e_r"]
[Black "sergeikim"]
[Result "1/2-1/2"]
[WhiteElo "2373"]
[BlackElo "2511"]
[TimeControl "180+1"]
[EndTime "11:04:46 PST"]
[Termination "Game drawn by repetition"]

1. e4 {[%clk 0:03:00.9]} 1... e5 {[%clk 0:02:59.6]} 2. Nc3 {[%clk 0:03:00.2]}
2... Nf6 {[%clk 0:02:58.2]} 3. f4 {[%clk 0:03:00.3]} 3... d5 {[%clk 0:02:57.5]}
4. fxe5 {[%clk 0:03:00.6]} 4... Nxe4 {[%clk 0:02:57.4]} 5. d3 {[%clk 0:03:01.2]}
5... Bb4 {[%clk 0:02:55.6]} 6. dxe4 {[%clk 0:02:58.4]} 6... Qh4+ {[%clk
0:02:53.8]} 7. Ke2 {[%clk 0:02:31.6]} 7... Bg4+ {[%clk 0:02:51.7]} 8. Nf3 {[%clk
0:02:31.5]} 8... Bxc3 {[%clk 0:02:49.9]} 9. bxc3 {[%clk 0:02:31]} 9... dxe4
{[%clk 0:02:49.8]} 10. Qd4 {[%clk 0:02:21.9]} 10... Bh5 {[%clk 0:02:49.6]} 11.
Ke3 {[%clk 0:02:05.8]} 11... Bxf3 {[%clk 0:02:22.9]} 12. gxf3 {[%clk 0:02:04.7]}
12... Qe1+ {[%clk 0:02:20.5]} 13. Kf4 {[%clk 0:01:57.4]} 13... Qh4+ {[%clk
0:02:13.5]} 14. Ke3 {[%clk 0:01:33]} 14... Qe1+ {[%clk 0:02:12.2]} 15. Kf4
{[%clk 0:01:11.4]} 15... Qh4+ {[%clk 0:02:11]} 16. Ke3 {[%clk 0:01:11.8]}
1/2-1/2

[Event "*** Titled Tuesday Blitz"]
[Site "Chess.com"]
[Date "2021.02.02"]
[Round "6"]
[White "Mbneu"]
[Black "alejogarcia1999"]
[Result "1-0"]
[WhiteElo "2306"]
[BlackElo "2426"]
[TimeControl "180+1"]
[EndTime "11:05:01 PST"]
[Termination "Mbneu won by resignation"]

1. d4 {[%clk 0:03:00.9]} 1... Nf6 {[%clk 0:02:27.1]} 2. c4 {[%clk 0:03:00.2]}
2... g6 {[%clk 0:02:27.3]} 3. Nc3 {[%clk 0:02:59.6]} 3... Bg7 {[%clk 0:02:28.2]}
4. e4 {[%clk 0:02:58.4]} 4... d6 {[%clk 0:02:29.1]} 5. f4 {[%clk 0:02:58.7]}
5... O-O {[%clk 0:02:30]} 6. Nf3 {[%clk 0:02:58.9]} 6... c5 {[%clk 0:02:30.4]}
7. d5 {[%clk 0:02:59.3]} 7... e6 {[%clk 0:02:28.9]} 8. Be2 {[%clk 0:02:59.6]}
8... exd5 {[%clk 0:02:28.4]} 9. cxd5 {[%clk 0:03:00.5]} 9... Bg4 {[%clk
0:02:26]} 10. e5 {[%clk 0:03:00.2]} 10... Bxf3 {[%clk 0:02:22.8]} 11. Bxf3
{[%clk 0:02:59.7]} 11... dxe5 {[%clk 0:02:21.5]} 12. fxe5 {[%clk 0:02:58.6]}
12... Re8 {[%clk 0:02:21.8]} 13. e6 {[%clk 0:02:58.2]} 13... fxe6 {[%clk
0:02:22]} 14. O-O {[%clk 0:02:57.2]} 14... exd5 {[%clk 0:02:21]} 15. Nxd5 {[%clk
0:02:56.5]} 15... Nc6 {[%clk 0:02:16.6]} 16. Bg5 {[%clk 0:02:54.4]} 16... Nd4
{[%clk 0:02:13.8]} 17. Bxf6 {[%clk 0:02:39.6]} 17... Bxf6 {[%clk 0:01:58.7]} 18.
Nxf6+ {[%clk 0:02:38.4]} 18... Qxf6 {[%clk 0:01:52.8]} 19. Bd5+ {[%clk
0:02:37.2]} 19... Kg7 {[%clk 0:01:53.2]} 20. Rxf6 {[%clk 0:02:36]} 20... Kxf6
{[%clk 0:01:54.1]} 21. Qg4 {[%clk 0:02:26.9]} 21... Rad8 {[%clk 0:01:49]} 22.
Rf1+ {[%clk 0:02:18.4]} 22... Nf5 {[%clk 0:01:47.6]} 23. Be4 {[%clk 0:02:11.5]}
23... Re5 {[%clk 0:01:41.5]} 24. Qh4+ {[%clk 0:02:01]} 24... g5 {[%clk
0:01:39.5]} 25. Qh6+ {[%clk 0:02:00.8]} 1-0

[Event "*** Titled Tuesday Blitz"]
[Site "Chess.com"]
[Date "2021.02.02"]
[Round "6"]
[White "dosto07"]
[Black "Cocaino74"]
[Result "1-0"]
[WhiteElo "2422"]
[BlackElo "2275"]
[TimeControl "180+1"]
[EndTime "11:05:06 PST"]
[Termination "dosto07 won by resignation"]

1. e4 {[%clk 0:03:00.9]} 1... c5 {[%clk 0:03:00.5]} 2. Nf3 {[%clk 0:03:00.8]}
2... b6 {[%clk 0:03:00.8]} 3. d4 {[%clk 0:02:56.7]} 3... cxd4 {[%clk 0:03:01.7]}
4. Nxd4 {[%clk 0:02:56.6]} 4... Bb7 {[%clk 0:03:02.4]} 5. f3 {[%clk 0:02:56.6]}
5... Nf6 {[%clk 0:02:59.6]} 6. c4 {[%clk 0:02:55.9]} 6... e6 {[%clk 0:02:58.3]}
7. Nc3 {[%clk 0:02:55.5]} 7... d5 {[%clk 0:02:56.9]} 8. cxd5 {[%clk 0:02:50.9]}
8... exd5 {[%clk 0:02:57.8]} 9. Bb5+ {[%clk 0:02:45.7]} 9... Nbd7 {[%clk
0:02:54.5]} 10. e5 {[%clk 0:02:44.5]} 10... Qe7 {[%clk 0:02:51.8]} 11. O-O
{[%clk 0:02:43.2]} 11... Ng8 {[%clk 0:02:43.9]} 12. e6 {[%clk 0:02:16.1]} 12...
fxe6 {[%clk 0:02:43.7]} 13. Nxe6 {[%clk 0:02:11]} 13... Qxe6 {[%clk 0:01:50.3]}
14. Re1 {[%clk 0:02:09.6]} 14... Bc5+ {[%clk 0:01:50.5]} 15. Kh1 {[%clk
0:02:09.3]} 15... Qxe1+ {[%clk 0:01:49.5]} 16. Qxe1+ {[%clk 0:02:08.4]} 16...
Ne7 {[%clk 0:01:50.2]} 17. Bg5 {[%clk 0:02:00.1]} 17... O-O-O {[%clk 0:01:50.2]}
18. Na4 {[%clk 0:01:51]} 18... Bd6 {[%clk 0:01:42.5]} 19. Rc1+ {[%clk
0:01:43.9]} 19... Kb8 {[%clk 0:01:38.3]} 20. Bxe7 {[%clk 0:01:43.2]} 20... Rhe8
{[%clk 0:01:37.3]} 21. Bxd6+ {[%clk 0:01:42.1]} 21... Ka8 {[%clk 0:01:36]} 1-0

[Event "*** Titled Tuesday Blitz"]
[Site "Chess.com"]
[Date "2021.02.02"]
[Round "6"]
[White "IMAghasiyevKamal"]
[Black "Vyacheslav_N"]
[Result "0-1"]
[WhiteElo "2568"]
[BlackElo "2383"]
[TimeControl "180+1"]
[EndTime "11:05:44 PST"]
[Termination "Vyacheslav_N won by resignation"]

1. d4 {[%clk 0:03:00.9]} 1... Nf6 {[%clk 0:02:54.6]} 2. c4 {[%clk 0:02:58.6]}
2... e6 {[%clk 0:02:55.1]} 3. g3 {[%clk 0:02:56.3]} 3... b6 {[%clk 0:02:56]} 4.
Bg2 {[%clk 0:02:56]} 4... Nc6 {[%clk 0:02:56.6]} 5. d5 {[%clk 0:02:54.2]} 5...
exd5 {[%clk 0:02:54.8]} 6. cxd5 {[%clk 0:02:54.2]} 6... Ne5 {[%clk 0:02:55.2]}
7. Nh3 {[%clk 0:02:43.7]} 7... Bb4+ {[%clk 0:02:54.2]} 8. Bd2 {[%clk 0:02:42.4]}
8... Bxd2+ {[%clk 0:02:54.2]} 9. Qxd2 {[%clk 0:02:35.6]} 9... d6 {[%clk
0:02:54.3]} 10. Nf4 {[%clk 0:02:34.9]} 10... O-O {[%clk 0:02:41.5]} 11. Nc3
{[%clk 0:02:31.6]} 11... Re8 {[%clk 0:02:41.1]} 12. O-O {[%clk 0:02:27.4]} 12...
Bd7 {[%clk 0:02:36.7]} 13. Rac1 {[%clk 0:02:21.5]} 13... Ng6 {[%clk 0:02:36.6]}
14. Nd3 {[%clk 0:02:17.5]} 14... a5 {[%clk 0:02:35.4]} 15. a4 {[%clk 0:01:35.7]}
15... h5 {[%clk 0:02:32.9]} 16. Nb5 {[%clk 0:01:29.8]} 16... Bxb5 {[%clk
0:02:26.8]} 17. axb5 {[%clk 0:01:30]} 17... h4 {[%clk 0:02:27.7]} 18. Rc4 {[%clk
0:01:27.5]} 18... Nd7 {[%clk 0:02:20.4]} 19. Rfc1 {[%clk 0:01:22.3]} 19... Nc5
{[%clk 0:02:20.5]} 20. Nxc5 {[%clk 0:01:08.1]} 20... bxc5 {[%clk 0:02:17.5]} 21.
gxh4 {[%clk 0:01:04]} 21... Nxh4 {[%clk 0:02:06]} 22. Rg4 {[%clk 0:01:03.2]}
22... Qf6 {[%clk 0:01:57.6]} 23. Be4 {[%clk 0:00:56.2]} 23... Rxe4 {[%clk
0:01:55.4]} 0-1

[Event "*** Titled Tuesday Blitz"]
[Site "Chess.com"]
[Date "2021.02.02"]
[Round "6"]
[White "GigaQuparadze"]
[Black "Yashasd1995"]
[Result "1-0"]
[WhiteElo "2976"]
[BlackElo "2630"]
[TimeControl "180+1"]
[EndTime "11:05:45 PST"]
[Termination "GigaQuparadze won by resignation"]

1. e4 {[%clk 0:03:00.9]} 1... d5 {[%clk 0:02:55.2]} 2. exd5 {[%clk 0:03:00.7]}
2... Nf6 {[%clk 0:02:53.4]} 3. Nf3 {[%clk 0:02:59.9]} 3... Nxd5 {[%clk
0:02:52.6]} 4. d4 {[%clk 0:03:00.1]} 4... g6 {[%clk 0:02:52.8]} 5. Bc4 {[%clk
0:02:59.5]} 5... Bg7 {[%clk 0:02:52.6]} 6. Bb3 {[%clk 0:02:59.8]} 6... O-O
{[%clk 0:02:52]} 7. O-O {[%clk 0:03:00]} 7... Nc6 {[%clk 0:02:41.5]} 8. Nc3
{[%clk 0:02:59.4]} 8... Nb6 {[%clk 0:02:36.3]} 9. Be3 {[%clk 0:02:55.2]} 9...
Na5 {[%clk 0:02:30.6]} 10. Re1 {[%clk 0:02:50.6]} 10... Nxb3 {[%clk 0:02:17.9]}
11. axb3 {[%clk 0:02:51.5]} 11... Be6 {[%clk 0:02:17.3]} 12. Ne4 {[%clk
0:02:47.2]} 12... Nd5 {[%clk 0:02:05.2]} 13. Nc5 {[%clk 0:02:46.1]} 13... Nxe3
{[%clk 0:02:04.7]} 14. Rxe3 {[%clk 0:02:46.3]} 14... Bc8 {[%clk 0:02:03.4]} 15.
c3 {[%clk 0:02:45.4]} 15... b6 {[%clk 0:02:01.8]} 16. Nd3 {[%clk 0:02:45.4]}
16... Bb7 {[%clk 0:02:00.9]} 17. Qe2 {[%clk 0:02:45.5]} 17... e6 {[%clk
0:02:00.5]} 18. b4 {[%clk 0:02:44.6]} 18... Qd5 {[%clk 0:01:57.3]} 19. h3 {[%clk
0:02:42.8]} 19... a5 {[%clk 0:01:56.6]} 20. bxa5 {[%clk 0:02:32.4]} 20... Rxa5
{[%clk 0:01:57.5]} 21. Rxa5 {[%clk 0:02:31.7]} 21... Qxa5 {[%clk 0:01:58.4]} 22.
Nfe5 {[%clk 0:02:32.1]} 22... Qd5 {[%clk 0:01:51.2]} 23. Nf4 {[%clk 0:02:31.4]}
23... Qd6 {[%clk 0:01:47.1]} 24. h4 {[%clk 0:02:29.5]} 24... Ra8 {[%clk
0:01:37]} 25. Qg4 {[%clk 0:02:26.4]} 25... Ra1+ {[%clk 0:01:30]} 26. Kh2 {[%clk
0:02:26.1]} 26... Rf1 {[%clk 0:01:27.7]} 27. Qg3 {[%clk 0:02:22.6]} 27... c5
{[%clk 0:01:17.3]} 28. Nc4 {[%clk 0:02:13.5]} 28... Qc7 {[%clk 0:01:08.2]} 29.
d5 {[%clk 0:02:12.7]} 29... exd5 {[%clk 0:00:57.9]} 30. Re8+ {[%clk 0:02:11.8]}
30... Bf8 {[%clk 0:00:58.1]} 31. Rxf8+ {[%clk 0:02:11.7]} 1-0

[Event "*** Titled Tuesday Blitz"]
[Site "Chess.com"]
[Date "2021.02.02"]
[Round "6"]
[White "Artem_Sadovsky"]
[Black "Arvids_Andrejevs"]
[Result "1-0"]
[WhiteElo "2568"]
[BlackElo "2395"]
[TimeControl "180+1"]
[EndTime "11:05:46 PST"]
[Termination "Artem_Sadovsky won by resignation"]

1. Nf3 {[%clk 0:03:00.9]} 1... d5 {[%clk 0:02:59.7]} 2. c4 {[%clk 0:03:01.1]}
2... e6 {[%clk 0:02:59.5]} 3. b3 {[%clk 0:03:01.4]} 3... Nf6 {[%clk 0:02:59.4]}
4. Bb2 {[%clk 0:03:01.6]} 4... Be7 {[%clk 0:02:59.7]} 5. e3 {[%clk 0:03:01.7]}
5... c5 {[%clk 0:02:59.9]} 6. Be2 {[%clk 0:03:01.2]} 6... Nc6 {[%clk 0:03:00.1]}
7. cxd5 {[%clk 0:03:01.2]} 7... Nxd5 {[%clk 0:02:52]} 8. O-O {[%clk 0:02:56.8]}
8... Bf6 {[%clk 0:02:48.2]} 9. Qc1 {[%clk 0:02:57]} 9... O-O {[%clk 0:02:45.3]}
10. Nc3 {[%clk 0:02:39.4]} 10... Nxc3 {[%clk 0:02:42.4]} 11. Bxc3 {[%clk
0:02:39.6]} 11... b6 {[%clk 0:02:39]} 12. Bxf6 {[%clk 0:02:39]} 12... Qxf6
{[%clk 0:02:37.9]} 13. d4 {[%clk 0:02:39.7]} 13... Bb7 {[%clk 0:02:11.3]} 14.
dxc5 {[%clk 0:02:38.2]} 14... Rac8 {[%clk 0:02:10.4]} 15. Qa3 {[%clk 0:02:18]}
15... Ne5 {[%clk 0:01:51.4]} 16. Nxe5 {[%clk 0:02:16.6]} 16... Qxe5 {[%clk
0:01:52.3]} 17. Qxa7 {[%clk 0:02:16.7]} 17... Bc6 {[%clk 0:00:53.6]} 18. Qxb6
{[%clk 0:01:47.5]} 18... Qd5 {[%clk 0:00:52.9]} 19. Bf3 {[%clk 0:01:41.4]} 1-0